{"text_format":"1","workbook":"xlsx","n_sheets":4,"sheets":["Eingabe","Etiketten Monochrom + Color","Etiketten Serie","Service-Tabelle"],"not_rendered":{"charts":0,"images":1,"macros":1,"external_links":0,"defined_names":31,"comments":0,"pivot_tables":0},"unopened":[],"bounds":{"document_bytes":16777216,"sheet_cells":100000,"rows_first":2000,"rows_last":500,"rows_between":2000,"halvings":0,"cell_chars":16384,"cell_head_chars":4096},"cells_cut":0,"cells_raw":0,"read":"whole","date_system":"1900"}

{"sheet":"Eingabe","index":0,"n_rows":34,"n_cols":6,"rows_kept":34,"cut":false,"hidden":false,"merged":[[33,1,36,7],[1,1,1,7],[26,1,27,7],[31,1,31,7],[29,1,30,7]]}
[]
[null,{"$f":"CONCATENATE(\"ÖVF-NÖ Landesmeisterschaft \",YEAR(TODAY()))","v":"ÖVF-NÖ Landesmeisterschaft 2023"}]
[]
[null,"persönliche Daten:"]
[null,"vorangestellter Titel:"]
[null,"Vorname:"]
[null,"Nachname:"]
[null,"nachgestellter Titel:"]
[null,"Vereinsnummer:",200,null,{"$f":"LOOKUP(vereinsnummer,'Service-Tabelle'!A1:B13)","v":"Bitte Vereinsnummer eingeben!"}]
[null,"Mitgliedsnummer:",0,null,"(Einzelmitglieder \"270\", Nichtmitglieder \"299\" als Vereinsnummer)"]
[]
[]
[null,"Monochrom:",null,null,null,"Color:"]
[null,"Bildtitel 1:",null,null,null,"Bildtitel 1:"]
[null,"Bildtitel 2:",null,null,null,"Bildtitel 2:"]
[null,"Bildtitel 3:",null,null,null,"Bildtitel 3:"]
[null,"Bildtitel 4:",null,null,null,"Bildtitel 4:"]
[null,"Bildtitel 5:",null,null,null,"Bildtitel 5:"]
[null,"Bildtitel 6:",null,null,null,"Bildtitel 6:"]
[]
[]
[null,"Serie:"]
[null,"Titel Serie 1:"]
[null,"Titel Serie 2:"]
[]
[]
[null,"⚠️ Bitte die Vereins- und Mitgliedsnummer kontrollieren! Diese werden für den Strichcode verwendet. Daher nutzt es nichts, falsche Vereins- oder Mitgliedsnummern auf den Etiketten zu korrigieren. Sie müssen nochmals mit korrektem Strichcode ausgedruckt werden!"]
[]
[]
[null,"⚠️ Vor Ausdruck muss die Schriftart \"3 of 9 Barcode\" (3OF9_NEW.TTF) installiert werden. Diese kann von der Verbandshomepage heruntergeladen werden:"]
[]
[null,"Download-Link"]
[]
[null,"Leider ist es nicht möglich einen 100% genauen Etiketten-Druck zu gewährleisten. Die Etiketten vom Typ AVERY Zweckform 3424 (oder ähnliche) sollten funktionieren. Es kann aber, je nach Drucker, zu unterschiedlichen Einzügen kommen. Daher empfiehlt der Landesverband die Verwendung von vollflächigen A4-Etiketten (Beispielsweise AVERY Zweckform 6125) und den anschließenden Ausschnitt."]

{"sheet":"Etiketten Monochrom + Color","index":1,"n_rows":29,"n_cols":7,"rows_kept":29,"cut":false,"hidden":false,"merged":[[3,0,3,2],[0,4,0,6],[1,3,2,3],[3,4,3,6],[1,2,2,2],[1,4,2,4],[1,6,2,6],[0,0,0,2],[1,0,2,0],[16,2,17,2],[18,0,18,2],[20,0,20,2],[5,0,5,2],[6,0,7,0],[6,2,7,2],[8,0,8,2],[10,0,10,2],[11,0,12,0],[11,2,12,2],[28,0,28,2],[5,4,5,6],[8,4,8,6],[10,4,10,6],[13,4,13,6],[15,4,15,6],[18,4,18,6],[21,0,22,0],[21,2,22,2],[23,0,23,2],[25,0,25,2],[26,0,27,0],[26,2,27,2],[13,0,13,2],[15,0,15,2],[16,0,17,0],[20,4,20,6],[23,4,23,6],[25,4,25,6],[28,4,28,6],[21,4,22,4],[21,6,22,6],[26,4,27,4],[26,6,27,6],[6,4,7,4],[6,6,7,6],[11,4,12,4],[11,6,12,6],[16,4,17,4],[16,6,17,6]]}
[{"$f":"CONCATENATE(\"Landesmeisterschaft \",YEAR(TODAY()))","v":"Landesmeisterschaft 2023"},null,null,null,{"$f":"CONCATENATE(\"Landesmeisterschaft \",YEAR(TODAY()))","v":"Landesmeisterschaft 2023"}]
["M 1",{"$f":"CONCATENATE(TEXT(vereinsnummer, \"000\"),\" \",TEXT(mitgliedsnummer,\"0000\"),\" - \",IF(ISBLANK(titel_vor),,CONCATENATE(titel_vor,\" \")),vorname, \" \", nachname, IF(ISBLANK(titel_nach), \"\", CONCATENATE(\" \", titel_nach)))","v":"200 0000 -  "},"Punkte:",null,"C 1",{"$f":"CONCATENATE(TEXT(vereinsnummer, \"000\"),\" \",TEXT(mitgliedsnummer,\"0000\"),\" - \",IF(ISBLANK(titel_vor),,CONCATENATE(titel_vor,\" \")),vorname, \" \", nachname, IF(ISBLANK(titel_nach), \"\", CONCATENATE(\" \", titel_nach)))","v":"200 0000 -  "},"Punkte:"]
[null,{"$f":"IF(ISBLANK(bt_m_1),\"KEIN TITEL ANGEGEBEN!\",bt_m_1)","v":"KEIN TITEL ANGEGEBEN!"},null,null,null,{"$f":"IF(ISBLANK(bt_c_1),\"KEIN TITEL ANGEGEBEN!\",bt_c_1)","v":"KEIN TITEL ANGEGEBEN!"}]
[{"$f":"CONCATENATE(\"*\",TEXT(vereinsnummer, \"000\"),TEXT(mitgliedsnummer, \"0000\"),\"M\",\"1*\")","v":"*2000000M1*"},null,null,null,{"$f":"CONCATENATE(\"*\",TEXT(vereinsnummer, \"000\"),TEXT(mitgliedsnummer, \"0000\"),\"C\",\"1*\")","v":"*2000000C1*"}]
[]
[{"$f":"CONCATENATE(\"Landesmeisterschaft \",YEAR(TODAY()))","v":"Landesmeisterschaft 2023"},null,null,null,{"$f":"CONCATENATE(\"Landesmeisterschaft \",YEAR(TODAY()))","v":"Landesmeisterschaft 2023"}]
["M 2",{"$f":"CONCATENATE(TEXT(vereinsnummer, \"000\"),\" \",TEXT(mitgliedsnummer,\"0000\"),\" - \",IF(ISBLANK(titel_vor),,CONCATENATE(titel_vor,\" \")),vorname, \" \", nachname, IF(ISBLANK(titel_nach), \"\", CONCATENATE(\" \", titel_nach)))","v":"200 0000 -  "},"Punkte:",null,"C 2",{"$f":"CONCATENATE(TEXT(vereinsnummer, \"000\"),\" \",TEXT(mitgliedsnummer,\"0000\"),\" - \",IF(ISBLANK(titel_vor),,CONCATENATE(titel_vor,\" \")),vorname, \" \", nachname, IF(ISBLANK(titel_nach), \"\", CONCATENATE(\" \", titel_nach)))","v":"200 0000 -  "},"Punkte:"]
[null,{"$f":"IF(ISBLANK(bt_m_2),\"KEIN TITEL ANGEGEBEN!\",bt_m_2)","v":"KEIN TITEL ANGEGEBEN!"},null,null,null,{"$f":"IF(ISBLANK(bt_c_2),\"KEIN TITEL ANGEGEBEN!\",bt_c_2)","v":"KEIN TITEL ANGEGEBEN!"}]
[{"$f":"CONCATENATE(\"*\",TEXT(vereinsnummer, \"000\"),TEXT(mitgliedsnummer, \"0000\"),\"M\",\"2*\")","v":"*2000000M2*"},null,null,null,{"$f":"CONCATENATE(\"*\",TEXT(vereinsnummer, \"000\"),TEXT(mitgliedsnummer, \"0000\"),\"C\",\"2*\")","v":"*2000000C2*"}]
[]
[{"$f":"CONCATENATE(\"Landesmeisterschaft \",YEAR(TODAY()))","v":"Landesmeisterschaft 2023"},null,null,null,{"$f":"CONCATENATE(\"Landesmeisterschaft \",YEAR(TODAY()))","v":"Landesmeisterschaft 2023"}]
["M 3",{"$f":"CONCATENATE(TEXT(vereinsnummer, \"000\"),\" \",TEXT(mitgliedsnummer,\"0000\"),\" - \",IF(ISBLANK(titel_vor),,CONCATENATE(titel_vor,\" \")),vorname, \" \", nachname, IF(ISBLANK(titel_nach), \"\", CONCATENATE(\" \", titel_nach)))","v":"200 0000 -  "},"Punkte:",null,"C 3",{"$f":"CONCATENATE(TEXT(vereinsnummer, \"000\"),\" \",TEXT(mitgliedsnummer,\"0000\"),\" - \",IF(ISBLANK(titel_vor),,CONCATENATE(titel_vor,\" \")),vorname, \" \", nachname, IF(ISBLANK(titel_nach), \"\", CONCATENATE(\" \", titel_nach)))","v":"200 0000 -  "},"Punkte:"]
[null,{"$f":"IF(ISBLANK(bt_m_3),\"KEIN TITEL ANGEGEBEN!\",bt_m_3)","v":"KEIN TITEL ANGEGEBEN!"},null,null,null,{"$f":"IF(ISBLANK(bt_c_3),\"KEIN TITEL ANGEGEBEN!\",bt_c_3)","v":"KEIN TITEL ANGEGEBEN!"}]
[{"$f":"CONCATENATE(\"*\",TEXT(vereinsnummer, \"000\"),TEXT(mitgliedsnummer, \"0000\"),\"M\",\"3*\")","v":"*2000000M3*"},null,null,null,{"$f":"CONCATENATE(\"*\",TEXT(vereinsnummer, \"000\"),TEXT(mitgliedsnummer, \"0000\"),\"C\",\"3*\")","v":"*2000000C3*"}]
[]
[{"$f":"CONCATENATE(\"Landesmeisterschaft \",YEAR(TODAY()))","v":"Landesmeisterschaft 2023"},null,null,null,{"$f":"CONCATENATE(\"Landesmeisterschaft \",YEAR(TODAY()))","v":"Landesmeisterschaft 2023"}]
["M 4",{"$f":"CONCATENATE(TEXT(vereinsnummer, \"000\"),\" \",TEXT(mitgliedsnummer,\"0000\"),\" - \",IF(ISBLANK(titel_vor),,CONCATENATE(titel_vor,\" \")),vorname, \" \", nachname, IF(ISBLANK(titel_nach), \"\", CONCATENATE(\" \", titel_nach)))","v":"200 0000 -  "},"Punkte:",null,"C 4",{"$f":"CONCATENATE(TEXT(vereinsnummer, \"000\"),\" \",TEXT(mitgliedsnummer,\"0000\"),\" - \",IF(ISBLANK(titel_vor),,CONCATENATE(titel_vor,\" \")),vorname, \" \", nachname, IF(ISBLANK(titel_nach), \"\", CONCATENATE(\" \", titel_nach)))","v":"200 0000 -  "},"Punkte:"]
[null,{"$f":"IF(ISBLANK(bt_m_4),\"KEIN TITEL ANGEGEBEN!\",bt_m_4)","v":"KEIN TITEL ANGEGEBEN!"},null,null,null,{"$f":"IF(ISBLANK(bt_c_4),\"KEIN TITEL ANGEGEBEN!\",bt_c_4)","v":"KEIN TITEL ANGEGEBEN!"}]
[{"$f":"CONCATENATE(\"*\",TEXT(vereinsnummer, \"000\"),TEXT(mitgliedsnummer, \"0000\"),\"M\",\"4*\")","v":"*2000000M4*"},null,null,null,{"$f":"CONCATENATE(\"*\",TEXT(vereinsnummer, \"000\"),TEXT(mitgliedsnummer, \"0000\"),\"C\",\"4*\")","v":"*2000000C4*"}]
[]
[{"$f":"CONCATENATE(\"Landesmeisterschaft \",YEAR(TODAY()))","v":"Landesmeisterschaft 2023"},null,null,null,{"$f":"CONCATENATE(\"Landesmeisterschaft \",YEAR(TODAY()))","v":"Landesmeisterschaft 2023"}]
["M 5",{"$f":"CONCATENATE(TEXT(vereinsnummer, \"000\"),\" \",TEXT(mitgliedsnummer,\"0000\"),\" - \",IF(ISBLANK(titel_vor),,CONCATENATE(titel_vor,\" \")),vorname, \" \", nachname, IF(ISBLANK(titel_nach), \"\", CONCATENATE(\" \", titel_nach)))","v":"200 0000 -  "},"Punkte:",null,"C 5",{"$f":"CONCATENATE(TEXT(vereinsnummer, \"000\"),\" \",TEXT(mitgliedsnummer,\"0000\"),\" - \",IF(ISBLANK(titel_vor),,CONCATENATE(titel_vor,\" \")),vorname, \" \", nachname, IF(ISBLANK(titel_nach), \"\", CONCATENATE(\" \", titel_nach)))","v":"200 0000 -  "},"Punkte:"]
[null,{"$f":"IF(ISBLANK(bt_m_5),\"KEIN TITEL ANGEGEBEN!\",bt_m_5)","v":"KEIN TITEL ANGEGEBEN!"},null,null,null,{"$f":"IF(ISBLANK(bt_c_5),\"KEIN TITEL ANGEGEBEN!\",bt_c_5)","v":"KEIN TITEL ANGEGEBEN!"}]
[{"$f":"CONCATENATE(\"*\",TEXT(vereinsnummer, \"000\"),TEXT(mitgliedsnummer, \"0000\"),\"M\",\"5*\")","v":"*2000000M5*"},null,null,null,{"$f":"CONCATENATE(\"*\",TEXT(vereinsnummer, \"000\"),TEXT(mitgliedsnummer, \"0000\"),\"C\",\"5*\")","v":"*2000000C5*"}]
[]
[{"$f":"CONCATENATE(\"Landesmeisterschaft \",YEAR(TODAY()))","v":"Landesmeisterschaft 2023"},null,null,null,{"$f":"CONCATENATE(\"Landesmeisterschaft \",YEAR(TODAY()))","v":"Landesmeisterschaft 2023"}]
["M 6",{"$f":"CONCATENATE(TEXT(vereinsnummer, \"000\"),\" \",TEXT(mitgliedsnummer,\"0000\"),\" - \",IF(ISBLANK(titel_vor),,CONCATENATE(titel_vor,\" \")),vorname, \" \", nachname, IF(ISBLANK(titel_nach), \"\", CONCATENATE(\" \", titel_nach)))","v":"200 0000 -  "},"Punkte:",null,"C 6",{"$f":"CONCATENATE(TEXT(vereinsnummer, \"000\"),\" \",TEXT(mitgliedsnummer,\"0000\"),\" - \",IF(ISBLANK(titel_vor),,CONCATENATE(titel_vor,\" \")),vorname, \" \", nachname, IF(ISBLANK(titel_nach), \"\", CONCATENATE(\" \", titel_nach)))","v":"200 0000 -  "},"Punkte:"]
[null,{"$f":"IF(ISBLANK(bt_m_6),\"KEIN TITEL ANGEGEBEN!\",bt_m_6)","v":"KEIN TITEL ANGEGEBEN!"},null,null,null,{"$f":"IF(ISBLANK(bt_c_6),\"KEIN TITEL ANGEGEBEN!\",bt_c_6)","v":"KEIN TITEL ANGEGEBEN!"}]
[{"$f":"CONCATENATE(\"*\",TEXT(vereinsnummer, \"000\"),TEXT(mitgliedsnummer, \"0000\"),\"M\",\"6*\")","v":"*2000000M6*"},null,null,null,{"$f":"CONCATENATE(\"*\",TEXT(vereinsnummer, \"000\"),TEXT(mitgliedsnummer, \"0000\"),\"C\",\"6*\")","v":"*2000000C6*"}]

{"sheet":"Etiketten Serie","index":2,"n_rows":4,"n_cols":7,"rows_kept":4,"cut":false,"hidden":false,"merged":[[3,0,3,2],[3,4,3,6],[0,0,0,2],[0,4,0,6],[1,0,2,0],[1,2,2,2],[1,3,2,3],[1,4,2,4],[1,6,2,6]]}
["Landesmeisterschaft 2022",null,null,null,"Landesmeisterschaft 2022"]
["S 1",{"$f":"CONCATENATE(TEXT(vereinsnummer, \"000\"),\" \",TEXT(mitgliedsnummer,\"0000\"),\" - \",IF(ISBLANK(titel_vor),,CONCATENATE(titel_vor,\" \")),vorname, \" \", nachname, IF(ISBLANK(titel_nach), \"\", CONCATENATE(\" \", titel_nach)))","v":"200 0000 -  "},"Punkte:",null,"S 2",{"$f":"CONCATENATE(TEXT(vereinsnummer, \"000\"),\" \",TEXT(mitgliedsnummer,\"0000\"),\" - \",IF(ISBLANK(titel_vor),,CONCATENATE(titel_vor,\" \")),vorname, \" \", nachname, IF(ISBLANK(titel_nach), \"\", CONCATENATE(\" \", titel_nach)))","v":"200 0000 -  "},"Punkte:"]
[null,{"$f":"IF(ISBLANK(bt_s_1),\"KEIN TITEL ANGEGEBEN!\",bt_s_1)","v":"KEIN TITEL ANGEGEBEN!"},null,null,null,{"$f":"IF(ISBLANK(bt_s_2),\"KEIN TITEL ANGEGEBEN!\",bt_s_2)","v":"KEIN TITEL ANGEGEBEN!"}]
[{"$f":"CONCATENATE(\"*\",TEXT(vereinsnummer, \"000\"),TEXT(mitgliedsnummer, \"0000\"),\"S\",\"2*\")","v":"*2000000S2*"},null,null,null,{"$f":"CONCATENATE(\"*\",TEXT(vereinsnummer, \"000\"),TEXT(mitgliedsnummer, \"0000\"),\"S\",\"2*\")","v":"*2000000S2*"}]

{"sheet":"Service-Tabelle","index":3,"n_rows":13,"n_cols":2,"rows_kept":13,"cut":false,"hidden":true,"merged":[]}
[0,"Bitte Vereinsnummer eingeben!"]
[201,"ESV Fotoclub St. Pölten"]
[202,"Fotoclub-ÖGV Neunkirchen"]
[203,"Fotocklub Hollabrunn"]
[204,"FS-SV-Semperit Wimpassing"]
[206,"Fotoklub Fotokreis-Süd Mödling"]
[207,"Fotogruppe Melk"]
[209,"Fotoklub Laufen Wilhelmsburg"]
[210,"TVN-VHS Traiskirchen"]
[215,"NF Ulmerfeld-Hausmening"]
[217,"Fotoklub Klein-Pöchlarn"]
[248,"Fotoklub Helios Purgstall"]
[299,"Einzelmitglied"]